bitfinex/quotes_ETHUSD_20250411
["timestamp","ask_amount","ask_price","bid_price","bid_amount"]
[1744341377017,7.30934,1536.9,1536.5,7.32754]
[1744341377217,0.55,1536.8,1536.5,13.83558]
[1744341377408,0.55,1536.9,1536.6,6.69882012]
[1744341379143,0.55,1536.9,1536.6,0.19126012]
[1744341379644,9.102719,1536.9,1536.6,0.19126012]
[1744341379847,6.50705,1536.8,1536.6,0.19126012]
[1744341380053,13.01434,1536.8,1536.6,0.19126012]
[1744341380239,7.05745,1536.7,1536.6,0.19126012]
[1744341380636,3.0,1536.8,1536.5,6.50799]
[1744341380841,0.55,1536.7,1536.6,0.19126012]
[1744341381022,9.50711,1536.8,1536.6,0.19126012]
[1744341381435,16.01438,1536.8,1536.6,0.19126012]
[1744341381752,9.50711,1536.8,1536.4,19.29861723]
[1744341381915,9.50711,1536.8,1536.5,6.69955012]
[1744341382297,2.596069,1536.9,1536.6,6.50773]
[1744341382499,6.898,1537.0,1536.8,6.50688]
[1744341382796,13.40418,1537.0,1536.9,0.19126012]
[1744341382994,15.945174,1537.0,1536.9,0.19126012]
[1744341383225,22.451614,1537.0,1536.6,7.32713]
[1744341383430,13.95418,1537.0,1536.7,6.50741]
[1744341383733,6.50504,1537.3,1536.9,7.3259]
[1744341384026,3.0,1537.2,1536.9,7.3259]
[1744341384229,9.50534,1537.2,1537.0,0.19126012]
[1744341384410,9.50534,1537.2,1536.9,0.8193]
[1744341384718,9.50534,1537.2,1537.0,0.19126012]
[1744341385037,9.50534,1537.2,1536.9,0.8193]
[1744341385329,9.50534,1537.2,1537.0,0.19126012]
[1744341385527,9.50534,1537.2,1536.9,0.8193]
[1744341385827,9.50534,1537.2,1537.0,0.19126012]
[1744341386125,3.0,1537.2,1537.0,6.50609]
[1744341386340,3.55,1537.2,1537.1,0.19126012]
[1744341387520,3.55,1537.2,1536.9,13.83216]
[1744341387841,3.55,1537.2,1537.0,0.19126012]
[1744341388006,3.55,1537.2,1537.0,6.69741012]
[1744341388211,6.50495,1537.3,1537.0,6.50615]
[1744341388645,6.50495,1537.3,1537.1,0.19126012]
[1744341389447,3.55,1537.3,1537.1,0.19126012]
[1744341390456,0.55,1537.3,1537.1,13.20258012]
[1744341390613,0.55,1537.3,1537.1,6.69684012]
[1744341391043,0.55,1537.3,1537.1,0.19126012]
[1744341391243,8.450373,1537.3,1537.1,0.19126012]
[1744341392585,7.05533,1537.2,1537.1,0.19126012]
[1744341392927,6.50581,1537.1,1536.7,7.28713]
[1744341393130,13.56282,1537.0,1536.8,0.19375912]
[1744341393341,14.919102,1537.0,1536.8,0.19375912]
[1744341393539,1.906282,1537.0,1536.7,6.50736]
[1744341393871,0.55,1537.0,1536.8,6.70075912]
[1744341394273,0.55,1537.0,1536.8,6.70064912]
[1744341394443,6.895,1537.1,1536.8,7.48034912]
[1744341394631,0.8006,1537.4,1536.8,0.97345912]
[1744341394838,6.50564,1537.2,1536.8,13.98717912]
[1744341395160,7.05602,1537.1,1536.8,0.97345912]
[1744341395341,7.85662,1537.1,1536.8,0.19375912]
[1744341395541,1.3506,1537.1,1536.8,0.19375912]
[1744341395736,7.05585,1537.1,1536.7,6.50737]
[1744341395931,7.05585,1537.1,1536.8,0.19705603]
[1744341396347,8.9221419,1537.1,1536.8,0.19705603]
[1744341396838,2.4162919,1537.1,1536.8,13.21078603]
[1744341397449,8.9221119,1537.1,1536.8,6.70390603]
[1744341397664,2.4162919,1537.1,1536.8,13.21079603]
[1744341397834,8.9223219,1537.1,1536.8,0.19705603]
[1744341398041,0.89223219,1537.0,1536.8,6.70388603]
[1744341398383,0.89223219,1537.0,1536.8,0.19705603]
[1744341398673,7.8572,1536.9,1536.8,0.19705603]
[1744341399036,7.8572,1536.9,1536.6,6.50776]
[1744341399280,1.3506,1536.9,1536.6,13.01549]
[1744341399463,1.3506,1536.9,1536.7,0.18125446]
[1744341399780,3.56575922,1536.9,1536.7,0.18125446]
[1744341400098,2.76515922,1536.9,1536.7,0.18125446]
[1744341400681,9.27176922,1536.9,1536.7,0.18125446]
[1744341400977,7.05702,1536.8,1536.7,0.18125446]
[1744341401139,7.05702,1536.8,1536.4,13.79677]
[1744341401477,0.705702,1536.7,1536.5,0.16710045]
[1744341403890,0.705702,1536.7,1536.5,6.67534045]
[1744341407767,8.72176922,1536.9,1536.5,6.67534045]
[1744341407768,15.22863922,1536.9,1536.5,6.67534045]
[1744341409250,2.21515922,1536.9,1536.7,6.50727]
[1744341409457,0.55,1536.9,1536.7,7.28677]
[1744341409954,0.55,1536.9,1536.8,0.16784255]
[1744341411044,15.09505219,1537.0,1536.8,0.16784255]
[1744341411045,6.896,1537.0,1536.8,6.67484255]
[1744341411363,6.896,1537.0,1536.8,0.16784255]
[1744341411607,15.042503,1537.0,1536.8,0.16784255]
[1744341412171,8.536183,1537.0,1536.8,6.67477255]
[1744341412406,6.896,1537.0,1536.8,0.16784255]
[1744341412615,13.40225,1537.0,1536.8,0.16784255]
[1744341412768,6.896,1537.0,1536.8,0.16784255]
[1744341413468,13.4022,1537.0,1536.8,0.16784255]
[1744341414217,17.64897977,1536.9,1536.8,0.16784255]
[1744341414509,17.64897977,1536.9,1536.3,6.50912]
[1744341414510,6.50717,1536.8,1536.4,7.2882]
[1744341414709,6.50717,1536.8,1536.5,0.1543786]
[1744341414915,17.33295,1536.9,1536.5,0.1543786]
[1744341415083,17.33295,1536.9,1536.5,6.50807]
[1744341415084,17.33302,1536.9,1536.5,6.50807]
[1744341415280,9.42755977,1537.1,1536.7,7.28691]
[1744341415281,7.27541,1537.1,1536.7,7.28691]
[1744341415615,9.50625,1537.0,1536.7,7.28681]
[1744341415921,10.0566,1536.9,1536.8,0.1543786]
[1744341416075,6.50765,1536.7,1536.3,7.28858]
[1744341416275,6.50822,1536.6,1536.4,0.1543786]
[1744341416519,6.50822,1536.6,1536.3,7.28857]
[1744341416817,6.50822,1536.6,1536.4,0.76264733]
[1744341417189,6.50822,1536.6,1536.4,0.1549609]
[1744341417392,7.05857,1536.5,1536.2,1.3067]
[1744341417596,7.05857,1536.5,1536.3,0.15490796]
[1744341418002,6.50872,1536.4,1536.3,0.15490796]
[1744341418403,7.31632,1536.4,1536.3,0.15490796]
[1744341419314,10.86632,1536.4,1536.3,0.15490796]
[1744341419631,12.993909,1536.4,1536.3,0.15490796]
[1744341422398,12.186309,1536.4,1536.3,0.15490796]
[1744341423793,15.91568877,1536.4,1536.3,0.15490796]
[1744341424011,9.50914,1536.3,1536.2,0.55]
[1744341424359,16.95214,1536.3,1536.2,0.55]
[1744341424521,20.27402288,1536.3,1536.2,0.55]
[1744341424710,21.08162288,1536.3,1536.2,0.55]
[1744341425253,31.14262288,1536.3,1536.2,0.55]
[1744341425638,31.46676028,1536.3,1536.2,0.55]
[1744341425842,6.51253,1535.5,1535.4,7.03409341]
[1744341426015,7.06189,1535.7,1535.4,6.27739341]
[1744341426016,7.443,1535.7,1535.4,6.27739341]
[1744341426211,6.893,1535.7,1535.5,0.7567]
[1744341426414,13.40472,1535.7,1535.5,0.7567]
[1744341426628,13.95472,1535.7,1535.6,0.15047344]
[1744341426830,16.05085425,1535.7,1535.6,0.15047344]
[1744341427253,0.55,1535.6,1535.3,7.26988]
[1744341427679,0.55,1535.6,1535.3,13.78304]
[1744341427842,0.55,1535.6,1535.4,6.51293]
[1744341428043,6.893,1535.7,1535.4,6.51293]
[1744341428248,13.40469,1535.7,1535.4,6.51293]
[1744341428442,6.893,1535.7,1535.3,0.7567]
[1744341428647,6.893,1535.7,1535.4,6.51274]
[1744341429773,6.893,1535.7,1535.5,6.51233]
[1744341429987,0.55,1535.8,1535.5,7.26903]
[1744341430153,23.48729307,1535.9,1535.5,7.26903]
[1744341430154,6.16,1535.9,1535.7,6.51149]
[1744341430473,9.65638603,1536.2,1535.8,6.51107]
[1744341430663,0.55,1536.0,1535.8,6.66154344]
[1744341430862,9.65638603,1536.2,1535.9,0.7567]
[1744341431371,9.65638603,1536.2,1536.0,0.15047344]
[1744341431543,0.55,1536.1,1535.8,6.51104]
[1744341431743,7.06015,1536.1,1535.9,0.15047344]
[1744341432048,7.06015,1536.1,1535.7,7.33148]
[1744341432049,0.706015,1536.0,1535.7,7.33148]
[1744341432255,9.65628603,1536.2,1535.8,6.51111]
[1744341432472,6.50961,1536.2,1535.8,6.51111]
[1744341433680,6.50961,1536.2,1535.9,6.51079]
[1744341434486,16.054,1536.3,1536.1,6.50996]
[1744341434783,6.894,1536.3,1536.1,6.50996]
[1744341435684,6.894,1536.3,1536.0,7.33005]
[1744341436050,10.795,1536.3,1536.0,0.82]
[1744341436259,6.894,1536.3,1536.2,7.32956]
[1744341436457,0.55,1536.5,1536.2,0.82]
[1744341436658,7.90737716,1536.5,1536.2,0.82]
[1744341437355,15.18687716,1536.5,1536.2,0.82]
[1744341437798,8.67827716,1536.5,1536.2,0.82]
[1744341438572,15.18689716,1536.5,1536.2,0.82]
[1744341439617,4.39890716,1536.5,1536.2,0.82]
[1744341439762,3.55,1536.5,1536.2,0.82]
[1744341440074,3.55,1536.5,1536.2,13.83869]
[1744341440275,3.55,1536.5,1536.2,7.32929]
[1744341440576,3.55,1536.5,1536.3,0.14809342]
[1744341440785,10.05853,1536.5,1536.3,0.14809342]
[1744341441000,11.753883,1536.5,1536.3,0.14809342]
[1744341441709,7.05872,1536.4,1536.3,0.14809342]
[1744341441911,7.05872,1536.4,1536.0,13.8405]
[1744341442199,3.0,1536.5,1536.2,0.82]
[1744341442400,6.9309,1536.7,1536.3,6.50891]
[1744341442606,7.6649,1536.7,1536.4,6.65656342]
[1744341442801,14.44410141,1536.7,1536.4,6.65656342]
[1744341442968,20.18074141,1536.7,1536.4,6.65656342]
[1744341443167,20.18074141,1536.7,1536.3,6.50914]
[1744341443371,26.68859141,1536.7,1536.4,0.14809342]
[1744341443570,26.68859141,1536.7,1536.3,6.50914]
[1744341443571,20.18074141,1536.7,1536.3,13.0181]
[1744341443805,20.18074141,1536.7,1536.4,0.14809342]
[1744341443991,20.18074141,1536.7,1536.3,13.0181]
[1744341444190,20.18074141,1536.7,1536.4,0.14809342]
[1744341444404,20.18074141,1536.7,1536.3,13.0181]
[1744341444405,26.68850141,1536.7,1536.3,6.50896]
[1744341444583,2.66885014,1536.6,1536.4,0.14809342]
[1744341444784,2.66885014,1536.6,1536.3,6.50896]
[1744341444984,2.66885014,1536.6,1536.4,0.14809342]
[1744341445183,20.18074141,1536.7,1536.3,13.01796]
[1744341445397,20.18074141,1536.7,1536.4,0.14809342]
[1744341445692,20.18074141,1536.7,1536.3,13.01791]
[1744341446012,20.18074141,1536.7,1536.4,0.14809342]
[1744341446306,20.18074141,1536.7,1536.3,13.01791]
[1744341446693,20.18074141,1536.7,1536.4,0.14809342]
[1744341447010,20.18074141,1536.7,1536.3,13.01791]
[1744341447178,13.40154,1536.7,1536.4,0.14809342]
[1744341447378,13.40154,1536.7,1536.3,13.01791]
[1744341447577,13.40154,1536.7,1536.4,6.65516417]
[1744341447879,6.894,1536.7,1536.5,0.7531]
[1744341448613,13.40155,1536.7,1536.5,0.7531]
[1744341448911,16.16628242,1536.7,1536.5,0.7531]
[1744341449122,9.65873242,1536.7,1536.6,0.14645417]
[1744341449330,13.20873242,1536.7,1536.6,0.14645417]
[1744341452132,13.20873242,1536.7,1536.5,0.7531]
[1744341452733,13.20873242,1536.7,1536.5,7.26134]
[1744341453035,13.20873242,1536.7,1536.6,0.14523808]
[1744341454248,19.71618242,1536.7,1536.6,0.14523808]
[1744341454750,19.71618242,1536.7,1536.4,0.7531]
[1744341454949,12.82218242,1536.7,1536.5,0.14523808]
[1744341455245,19.55439,1537.0,1536.7,0.7531]
[1744341455444,3.0,1536.9,1536.7,0.7531]
[1744341455654,3.55,1536.9,1536.8,0.14481516]
[1744341456758,3.55,1536.9,1536.7,0.7531]
[1744341456915,3.55,1536.9,1536.8,0.14481516]
[1744341457954,3.55,1536.9,1536.7,7.26054]
[1744341458135,3.55,1536.9,1536.8,0.14481516]
[1744341459334,5.94357109,1536.9,1536.8,0.14481516]
[1744341459538,3.55,1536.9,1536.8,0.14481516]
[1744341460860,0.55,1536.9,1536.8,0.14481516]
[1744341461158,7.05711,1536.8,1536.5,0.7749]
[1744341461357,7.05711,1536.8,1536.6,0.14481516]
[1744341462239,7.05711,1536.8,1536.4,7.31575]
[1744341462439,0.705711,1536.7,1536.4,0.8071]
[1744341462666,6.50809,1536.6,1536.4,0.8071]
[1744341462985,6.50809,1536.6,1536.2,0.8071]
[1744341462986,3.55,1536.5,1536.2,0.8071]
[1744341463140,10.05843,1536.5,1536.2,0.8071]
[1744341463449,10.05843,1536.5,1536.1,6.50984]
[1744341463650,1.005843,1536.4,1536.1,6.50984]
[1744341463877,0.55,1536.3,1536.0,0.8071]
[1744341464040,10.83383,1536.3,1536.0,0.8071]
[1744341464241,3.55,1536.3,1536.0,0.8071]
[1744341464440,3.55,1536.3,1536.0,7.31744]
[1744341464640,12.18643647,1536.3,1536.0,0.8071]
[1744341464851,6.50999,1536.1,1535.8,7.3183]
[1744341465082,6.50999,1536.1,1535.9,0.36475818]
[1744341465743,6.50999,1536.1,1535.8,0.8071]
[1744341466075,0.55,1536.1,1535.8,7.31827]
[1744341466273,0.55,1536.1,1535.8,7.31816]
[1744341466779,0.55,1536.1,1535.9,6.51076]
[1744341467076,0.55,1536.1,1535.8,7.31816]
[1744341468381,1.94467,1536.1,1535.8,7.31816]
[1744341468678,1.94467,1536.1,1535.8,13.82919]
[1744341469591,1.94467,1536.1,1535.9,6.51081]
[1744341470487,9.887,1536.2,1536.1,6.50999]
[1744341471188,6.888,1536.5,1536.2,6.50941]
[1744341471373,0.55,1536.4,1536.2,6.50941]
[1744341471885,0.55,1536.4,1536.2,13.01876]
[1744341472101,0.55,1536.4,1536.2,6.50935]
[1744341473391,0.55,1536.4,1536.2,13.01874]
[1744341474593,0.55,1536.4,1536.2,6.50935]
[1744341475192,0.55,1536.4,1536.3,0.14740595]
[1744341475407,1.2938,1536.4,1536.1,13.01976]
[1744341475696,1.2938,1536.4,1536.3,0.14740595]
[1744341475856,1.2938,1536.4,1536.1,13.01976]
[1744341476058,1.2938,1536.4,1536.3,0.14740595]
[1744341476256,1.2938,1536.4,1536.1,6.50978]
[1744341476478,1.2938,1536.4,1536.3,0.14740595]
[1744341476669,1.2938,1536.4,1536.1,6.50978]
[1744341476873,1.2938,1536.4,1536.0,7.31736]
[1744341476874,0.55,1536.2,1536.0,7.31736]
[1744341477498,0.55,1536.2,1536.0,13.8276]
[1744341477800,0.55,1536.2,1536.0,7.31734]
[1744341479974,0.55,1536.2,1536.0,13.8276]
[1744341480176,3.0,1536.4,1536.1,6.50975]
[1744341480380,0.55,1536.4,1536.2,6.50938]
[1744341480679,6.888,1536.5,1536.3,6.50899]
[1744341480915,3.0,1536.6,1536.3,7.32925]
[1744341481079,6.888,1536.8,1536.5,6.50829]
[1744341481422,0.81,1536.7,1536.4,7.32881]
[1744341481713,0.81,1536.7,1536.5,6.50824]
[1744341481907,13.63568711,1536.8,1536.5,13.01635]
[1744341482110,6.888,1536.8,1536.6,6.50784]
[1744341482404,6.888,1536.8,1536.6,7.32814]
[1744341482987,6.888,1536.8,1536.7,6.50745]
[1744341483177,6.888,1536.8,1536.6,7.32797]
[1744341483798,6.888,1536.8,1536.4,6.50867]
[1744341483799,1.36,1536.7,1536.4,6.50867]
[1744341484012,2.1848,1536.7,1536.4,6.50867]
[1744341484217,1.3748,1536.7,1536.4,13.01721]
[1744341484388,0.55,1536.7,1536.5,6.50824]
[1744341484596,0.55,1536.7,1536.5,6.5081]
[1744341485186,0.55,1536.7,1536.4,6.50871]
[1744341486318,0.55,1536.7,1536.5,6.50827]
[1744341486504,0.55,1536.7,1536.5,13.01654]
[1744341486721,0.55,1536.7,1536.5,6.50827]
[1744341487917,0.55,1536.7,1536.5,6.50814]
[1744341488323,7.698,1536.8,1536.5,6.50813]
[1744341489326,7.698,1536.8,1536.5,13.01628]
[1744341489893,7.698,1536.8,1536.6,6.50785]
[1744341490227,10.438,1536.8,1536.7,0.144974]
[1744341490396,0.81,1537.0,1536.7,6.652424]
[1744341490595,13.851,1537.1,1536.7,6.652424]
[1744341490813,3.0,1537.0,1536.7,6.652424]
[1744341491016,3.0,1537.0,1536.7,6.50745]
[1744341491216,3.0,1537.0,1536.8,0.144974]
[1744341491589,3.0,1537.0,1536.8,6.651904]
[1744341492293,3.0,1537.0,1536.8,6.651824]
[1744341492487,13.591,1537.1,1537.0,6.50618]
[1744341492789,6.16,1537.1,1537.0,0.14085152]
[1744341492988,0.7984,1537.3,1537.0,6.64682152]
[1744341493212,18.95582109,1537.4,1537.0,13.94794152]
[1744341493416,2.44558211,1537.3,1537.0,13.94794152]
[1744341493691,5.44558211,1537.3,1537.1,6.50574]
[1744341493891,5.44558211,1537.3,1537.1,6.64653869]
[1744341494358,12.45127109,1537.4,1537.1,6.64633869]
[1744341494642,3.55,1537.3,1537.1,0.14079869]
[1744341495144,10.05492,1537.3,1537.1,0.14079869]
[1744341495348,3.55,1537.3,1537.1,0.14079869]
[1744341496933,3.55,1537.3,1537.1,6.64654869]
[1744341497248,6.881,1537.4,1537.1,0.14079869]
[1744341497453,6.881,1537.4,1537.2,13.01026]
[1744341497640,6.881,1537.4,1537.3,0.7951]
[1744341497835,3.0,1537.5,1537.3,7.29999]
[1744341498027,4.77187109,1537.6,1537.4,6.50448]
[1744341498347,4.77187109,1537.6,1537.5,6.64248195]
[1744341498653,4.77187109,1537.6,1537.5,7.43758195]
[1744341499017,4.77187109,1537.6,1537.5,11.04248433]
[1744341499259,4.77187109,1537.6,1537.5,18.28438694]
[1744341500058,1.09e-06,1537.6,1537.5,18.28438694]
[1744341500261,6.20343242,1538.0,1537.9,7.29747]
[1744341500630,6.20343242,1538.0,1537.9,7.42449006]
[1744341501543,6.20343242,1538.0,1537.9,10.34863174]
[1744341501964,6.20343242,1538.0,1537.9,20.22563174]
[1744341502270,7.63499374,1538.2,1538.1,9.50152]
[1744341502437,7.63499374,1538.2,1538.1,14.18476823]
[1744341502647,7.63499374,1538.2,1538.1,13.94963659]
[1744341502864,7.63499374,1538.2,1538.1,13.34714883]
[1744341504771,7.63499374,1538.2,1538.1,19.40714883]
[1744341506047,7.63499374,1538.2,1538.1,19.88556433]
[1744341506577,13.46123906,1538.4,1538.3,7.29618]
[1744341506763,13.46123906,1538.4,1538.3,23.27775655]
[1744341507279,13.46123906,1538.4,1538.3,26.27775655]
[1744341507985,0.1,1538.4,1538.3,26.27775655]
[1744341508461,16.22436171,1539.1,1538.9,6.49795]
[1744341508775,16.22436171,1539.1,1539.0,0.12285521]
[1744341508940,16.22436171,1539.1,1538.8,7.29402]
[1744341509140,16.22436171,1539.1,1538.9,0.12285521]
[1744341509574,12.99324,1539.3,1538.9,0.12285521]
[1744341510075,6.4969,1539.2,1538.9,0.12285521]
[1744341510582,0.55,1539.3,1538.9,6.62091521]
[1744341511348,0.8253,1539.4,1539.0,6.49756]
[1744341511791,0.8253,1539.4,1539.1,6.62014521]
[1744341511979,12.65565,1539.5,1539.1,7.41564521]
[1744341512143,2.052619,1539.5,1539.1,7.29264]
[1744341512544,8.548409,1539.5,1539.1,0.7955]
[1744341512872,7.32198,1539.3,1538.8,7.29386]
[1744341513489,12.84772068,1539.5,1538.8,0.7955]
[1744341513788,1.28477207,1539.4,1539.0,6.4977]
[1744341514381,1.28477207,1539.4,1539.0,12.99516]
[1744341514578,1.28477207,1539.4,1539.0,6.49746]
[1744341515251,14.27717207,1539.4,1538.9,6.49806]
[1744341515461,6.49645,1539.3,1538.8,7.29399]
[1744341515864,6.49645,1539.3,1538.8,13.79231]
[1744341517396,6.49609,1539.4,1538.9,6.49786]
[1744341517557,12.99238,1539.4,1538.9,6.49786]
[1744341517758,6.49646,1539.3,1538.8,7.29401]
[1744341518195,6.49646,1539.3,1538.8,13.79241]
[1744341518493,6.49609,1539.4,1538.9,6.49812]
[1744341518654,0.649609,1539.3,1538.9,6.49812]
[1744341519695,7.146109,1539.3,1538.9,6.49812]
[1744341519897,0.649609,1539.3,1538.9,6.498]
[1744341520198,1.3753,1539.5,1539.1,6.49729]
[1744341520393,7.87105,1539.5,1539.1,6.49729]
[1744341520603,6.4962,1539.4,1539.0,6.49769]
[1744341520797,6.4962,1539.4,1539.0,6.49751]
[1744341521804,1.3753,1539.5,1539.0,6.49751]
[1744341521996,2.162385,1539.5,1539.0,6.49751]
[1744341522294,6.49627,1539.4,1539.0,6.49751]
[1744341522701,2.162385,1539.5,1539.1,7.24849]
[1744341522702,8.108025,1539.5,1539.1,7.24849]
[1744341522896,8.108025,1539.5,1539.1,0.7512]
[1744341523396,8.108025,1539.5,1539.1,7.24843]
[1744341523397,1.612385,1539.5,1539.1,7.24843]
[1744341523574,7.04524,1539.6,1539.2,6.49674]
[1744341523761,0.7519,1539.7,1539.1,0.7512]
[1744341524100,19.90038,1539.9,1539.5,6.4956]
[1744341524281,13.74038,1539.9,1539.5,6.4956]
[1744341524486,16.14863217,1539.9,1539.5,6.4956]
[1744341524797,3.0,1539.8,1539.5,6.4956]
[1744341524997,16.28570168,1540.0,1539.5,6.49547]
[1744341525297,16.28570168,1540.0,1539.7,6.49475]
[1744341525298,6.868,1540.0,1539.7,6.49475]
[1744341525702,6.868,1540.0,1539.6,12.99036]
[1744341525905,9.228633,1540.0,1539.7,0.7512]
[1744341526067,5.365633,1540.0,1539.7,0.7512]
[1744341526267,0.005,1540.0,1539.7,0.7512]
[1744341526504,0.005,1540.0,1539.7,7.24581]
[1744341526701,0.005,1540.0,1539.7,7.24576]
[1744341527001,0.005,1540.0,1539.8,6.49433]
[1744341527467,0.005,1540.0,1539.9,6.49392]
[1744341527668,0.005,1540.0,1539.8,12.98834]
[1744341527868,0.005,1540.0,1539.8,6.49414]
[1744341528278,0.005,1540.0,1539.9,7.24512]
[1744341528669,0.005,1540.0,1539.9,7.84729092]
[1744341529006,0.005,1540.0,1539.9,8.2085904]
[1744341530812,0.55,1540.3,1539.9,16.5173904]
[1744341531110,0.55,1540.3,1540.2,13.16800168]
[1744341531278,0.55,1540.3,1540.2,19.77800168]
[1744341531609,0.55,1540.3,1540.2,20.3801726]
[1744341531825,0.4941673,1540.4,1540.3,7.04224]
[1744341532101,0.4941673,1540.4,1540.3,20.71344]
[1744341532302,7.3e-06,1540.4,1540.3,21.31561092]
[1744341532513,0.7519,1541.3,1540.9,7.2406]
[1744341532876,0.7519,1541.3,1540.9,7.24086]
[1744341533083,6.48867,1541.2,1540.7,20.59105]
[1744341533276,6.48867,1541.2,1540.7,20.59088]
[1744341533511,12.97737,1541.2,1540.7,20.59093]
[1744341533871,6.48867,1541.2,1540.7,20.59093]
[1744341534208,6.4898,1540.9,1540.4,0.7512]
[1744341534389,10.16569168,1541.0,1540.5,6.491]
[1744341534590,17.72683085,1541.0,1540.5,6.491]
[1744341534782,11.23718085,1541.0,1540.5,12.98215]
[1744341535823,17.72672085,1541.0,1540.5,12.98215]
[1744341536029,11.23715085,1541.0,1540.5,12.98215]
[1744341536328,17.72669085,1541.0,1540.5,12.98215]
[1744341536529,6.49013,1540.8,1540.4,0.7512]
[1744341536849,7.29613,1540.7,1540.3,11.24429134]
[1744341537013,6.48994,1540.9,1540.4,12.98338]
[1744341537217,6.48994,1540.9,1540.5,7.31684]
[1744341537392,6.48994,1540.9,1540.5,13.80804]
[1744341537728,10.48502085,1541.0,1540.6,6.49064]
[1744341537887,7.56087917,1541.0,1540.6,12.98158]
[1744341538220,7.56087917,1541.0,1540.6,6.49064]
[1744341538428,1.07156917,1541.0,1540.5,0.8256]
[1744341538589,6.48931,1541.0,1540.6,6.49091]
[1744341538786,12.97893,1541.0,1540.6,6.49091]
[1744341538987,1.0280267,1541.0,1540.5,0.8256]
[1744341539246,6.49004,1540.9,1540.5,7.31697]
[1744341539384,6.48996,1540.9,1540.5,13.80818]
[1744341539587,6.48996,1540.9,1540.5,7.31681]
[1744341539999,0.8054,1540.8,1540.4,11.24387134]
[1744341540213,0.8054,1540.8,1540.4,4.75211134]
[1744341540594,6.49075,1540.7,1540.4,4.75211134]
[1744341540818,0.8054,1540.8,1540.5,6.49125]
[1744341541007,7.29473,1541.0,1540.4,4.75211134]
[1744341541205,7.29473,1541.0,1540.7,6.49055]
[1744341541628,7.29473,1541.0,1540.6,7.31628]
[1744341541629,7.29473,1541.0,1540.6,13.8071]
[1744341542605,0.8054,1541.2,1540.8,6.48972]
[1744341542930,13.78271,1541.2,1540.8,6.48972]
[1744341543157,12.97811,1541.1,1540.7,6.49048]
[1744341543357,6.48903,1541.1,1540.7,12.98085]
[1744341543522,7.29512,1540.9,1540.6,8.69723]
[1744341543725,7.29512,1540.9,1540.6,7.31652]
[1744341544032,0.8054,1540.9,1540.6,13.80736]
[1744341544374,13.78262,1541.2,1540.8,6.49009]
[1744341544858,6.48945,1541.0,1540.8,4.75211134]
[1744341545054,7.787291,1541.0,1540.8,4.75211134]
[1744341546447,7.29511,1540.9,1540.8,4.75211134]
[1744341547264,6.49045,1540.8,1540.5,4.75211134]
[1744341547450,12.98096,1540.8,1540.5,4.75211134]
[1744341547650,6.49059,1540.7,1540.5,4.75211134]
[1744341548633,7.29556,1540.8,1540.5,4.75211134]
[1744341549271,7.29556,1540.8,1540.5,5.57771134]
[1744341549726,6.49058,1540.7,1540.5,4.75211134]
[1744341549928,6.49097,1540.6,1540.3,5.57771134]
[1744341550241,6.49058,1540.7,1540.3,12.06994134]
[1744341550561,6.49107,1540.6,1540.3,7.51826848]
[1744341550781,6.49107,1540.6,1540.3,5.57771134]
[1744341550947,6.49064,1540.7,1540.3,12.06968134]
[1744341551139,6.49064,1540.7,1540.3,18.56187134]
[1744341551643,6.49064,1540.7,1540.3,12.06968134]
[1744341551839,6.49114,1540.6,1540.3,5.57771134]
[1744341552179,6.49114,1540.6,1540.3,12.06991134]
[1744341552343,0.8054,1540.8,1540.3,5.57771134]
[1744341552543,3.0,1540.9,1540.6,7.2756]
[1744341552746,7.6105,1541.0,1540.7,6.49033]
[1744341552934,12.9773,1541.2,1540.8,7.27467]
[1744341553139,6.48852,1541.2,1540.8,15.141139]
[1744341553336,6.48959,1541.0,1540.8,0.7847]
[1744341553556,6.48959,1541.0,1540.6,21.09429074]
[1744341553953,12.97911,1541.0,1540.6,14.12546]
[1744341554138,6.48952,1541.0,1540.7,0.60350578]
[1744341554540,7.24942,1541.1,1540.7,7.09397578]
[1744341554749,7.24942,1541.1,1540.7,8.56676336]
[1744341555139,7.24942,1541.1,1540.8,0.60350578]
[1744341555341,0.7605,1541.1,1540.8,7.09353578]
[1744341555567,6.48851,1541.2,1540.8,6.49003]
[1744341555766,6.48891,1541.1,1540.7,7.96321758]
[1744341555955,6.49003,1540.9,1540.6,0.7847]
[1744341556482,6.49003,1540.9,1540.7,0.60499152]
[1744341556779,6.49013,1540.8,1540.7,0.60499152]
[1744341557078,6.48942,1541.0,1540.6,7.09579152]
[1744341557439,6.48975,1540.9,1540.7,0.60499152]
[1744341557842,6.48942,1541.0,1540.7,0.60499152]
[1744341558382,12.97893,1541.0,1540.7,2.78584967]
[1744341558576,7.6816,1541.1,1540.8,0.60499152]
[1744341558768,6.48852,1541.2,1540.8,13.58501152]
[1744341558972,6.48852,1541.2,1540.9,0.60499152]
[1744341559179,6.48852,1541.2,1540.9,8.45317267]
[1744341559387,7.32066,1541.3,1540.9,1.96349267]
[1744341559570,6.48864,1541.2,1541.0,0.60499152]
[1744341560280,12.97744,1541.2,1541.0,0.60499152]
[1744341560458,6.48887,1541.1,1541.0,0.60499152]
[1744341560657,12.97805,1541.1,1540.8,0.60499152]
[1744341561059,6.48887,1541.1,1540.8,0.60499152]
[1744341561399,6.48891,1541.1,1540.8,1.39674967]
[1744341561686,6.48891,1541.1,1540.9,0.96892729]
[1744341561981,6.48891,1541.1,1541.0,0.60499152]
[1744341562471,6.48891,1541.1,1540.9,0.60499152]
[1744341562959,12.97812,1541.1,1540.8,0.79175815]
[1744341563282,7.32206,1541.0,1540.7,0.8222]
[1744341563483,7.32206,1541.0,1540.7,7.31273]
[1744341563856,13.81161,1541.0,1540.8,0.60657483]